[Event "RUS-ch Blitz Women 2018"]
[Site "Sochi"]
[Date "2018.10.07"]
[Round "3"]
[White "Vinokur, Yuliya"]
[Black "Dordzhieva, Dinara"]
[Result "0-1"]
[ECO "D30"]
[WhiteElo "2170"]
[BlackElo "2340"]
[Annotator "NA"]
[PlyCount "84"]
[EventDate "2018.10.07"]
[EventType "swiss"]
[EventCountry "RUS"]
[SourceTitle "playchess.com"]
[Source "ChessBase"]
[SourceQuality "1"]
[TimeControl "180+2"]

1. d4 {[%emt 0:00:00]} d5 {[%emt 0:00:05]} 2. c4 {[%emt 0:00:02]} e6 {[%emt 0:00:01]} 3. Nf3 {[%emt 0:00:01]} Nf6 {[%emt 0:00:01]} 4. g3 {[%emt 0:00:01]} c6 {[%emt 0:00:04]} 5. Bg2 {[%emt 0:00:02]} Be7 {[%emt 0:00:03]} 6. O-O {[%emt 0:00:02]} O-O {[%emt 0:00:02]} 7. Qc2 {[%emt 0:00:02]} b6 {[%emt 0:00:00]} 8. Nbd2 {[%emt 0:00:08]} Na6 {[%emt 0:00:03]} 9. a3 {[%emt 0:00:21]} Bb7 {[%emt 0:00:02]} 10. e4 {[%emt 0:00:02]} dxc4 {[%emt 0:00:11]} 11. Nxc4 c5 12. e5 {[%emt 0:00:42]} Nd5 {[%emt 0:00:01]} 13. dxc5 {[%emt 0:00:06]} Nxc5 {[%emt 0:00:01]} 14. b4 {[%emt 0:00:01]} Na6 {[%emt 0:00:22]} 15. Bb2 {[%emt 0:00:08]} Rc8 {[%emt 0:00:00]} 16. Qe2 {[%emt 0:00:01]} Qc7 {[%emt 0:00:31]} 17. Rac1 {[%emt 0:00:01]} Qb8 {[%emt 0:00:01]} 18. Nd4 {[%emt 0:00:10]} Nac7 {[%emt 0:00:37]} 19. Qg4 {[%emt 0:00:07]} Ne8 {[%emt 0:00:01]} 20. Rfd1 {[%emt 0:01:04]} Kh8 {[%emt 0:00:06]} 21. Be4 {[%emt 0:00:17]} g6 {[%emt 0:00:07]} 22. Rc2 {[%emt 0:00:09]} Ng7 {[%emt 0:00:01]} 23. Bc1 {[%emt 0:00:03]} Qa8 {[%emt 0:00:22]} 24. Bg2 {[%emt 0:00:06]} h5 {[%emt 0:00:14]} 25. Qe2 {[%emt 0:00:02]} Kh7 {[%emt 0:00:01]} 26. Ne3 {[%emt 0:00:04]} Nxe3 {[%emt 0:00:01]} 27. fxe3 {[%emt 0:00:01]} Rxc2 {[%emt 0:00:02]} 28. Qxc2 {[%emt 0:00:01]} Rc8 {[%emt 0:00:04]} 29. Qe2 {[%emt 0:00:02]} Be4 {[%emt 0:00:22]} 30. Rf1 {[%emt 0:00:06]} Kg8 {[%emt 0:00:02]} 31. Qf2 {[%emt 0:00:01]} Nf5 {[%emt 0:00:05]} 32. Nxf5 {[%emt 0:00:02]} exf5 {[%emt 0:00:00]} 33. Bd2 {[%emt 0:00:05]} Rc2 {[%emt 0:00:01]} 34. Bxe4 Qxe4 35. Qe1 {[%emt 0:00:03]} Qxe5 {[%emt 0:00:07]} 36. Qd1 {[%emt 0:00:02]} Qe4 {[%emt 0:00:01]} 37. Rf4 {[%emt 0:00:01]} Qd3 {[%emt 0:00:01]} 38. Rd4 {[%emt 0:00:01]} Qb3 {[%emt 0:00:06]} 39. Kf2 {[%emt 0:00:02]} Bg5 {[%emt 0:00:03]} 40. Ke2 {[%emt 0:00:02]} Qxe3+ {[%emt 0:00:10]} 41. Kf1 {[%emt 0:00:06]} Qxd4 {[%emt 0:00:01]} 42. Qxc2 Qxd2 {[%emt 0:00:02]} 0-1

[Event "RUS-ch Blitz Women 2018"]
[Site "Sochi"]
[Date "2018.10.07"]
[Round "3"]
[White "Sukhareva, Evgeniya"]
[Black "Markelova, Lubov"]
[Result "1-0"]
[ECO "D02"]
[WhiteElo "2125"]
[BlackElo "2190"]
[Annotator "NA"]
[PlyCount "107"]
[EventDate "2018.10.07"]
[EventType "swiss"]
[EventCountry "RUS"]
[SourceTitle "playchess.com"]
[Source "ChessBase"]
[SourceQuality "1"]
[TimeControl "180+2"]

1. d4 {[%emt 0:00:00]} d5 {[%emt 0:00:00]} 2. Nf3 {[%emt 0:00:00]} Nf6 {[%emt 0:00:00]} 3. c4 c6 4. Qc2 {[%emt 0:00:09]} dxc4 {[%emt 0:00:05]} 5. Qxc4 {[%emt 0:00:02]} Bg4 {[%emt 0:00:03]} 6. Nbd2 {[%emt 0:00:06]} e6 {[%emt 0:00:04]} 7. g3 {[%emt 0:00:03]} Be7 {[%emt 0:00:06]} 8. Bg2 {[%emt 0:00:02]} O-O {[%emt 0:00:02]} 9. e3 {[%emt 0:00:05]} Nbd7 {[%emt 0:00:02]} 10. O-O {[%emt 0:00:05]} Rc8 {[%emt 0:00:02]} 11. b4 {[%emt 0:00:03]} a5 {[%emt 0:00:18]} 12. a3 {[%emt 0:00:03]} Qb6 {[%emt 0:00:04]} 13. Rb1 {[%emt 0:00:13]} axb4 {[%emt 0:00:25]} 14. axb4 {[%emt 0:00:02]} Ra8 {[%emt 0:00:03]} 15. Qb3 {[%emt 0:00:10]} Qb5 {[%emt 0:00:13]} 16. Re1 {[%emt 0:00:15]} Nb6 {[%emt 0:00:07]} 17. e4 {[%emt 0:00:09]} Qa4 {[%emt 0:00:15]} 18. Qc3 {[%emt 0:00:24]} Qa2 {[%emt 0:00:26]} 19. Ne5 {[%emt 0:00:05]} Bh5 {[%emt 0:00:14]} 20. Qe3 {[%emt 0:00:30]} Nbd7 {[%emt 0:00:20]} 21. Nec4 {[%emt 0:00:12]} Bg6 {[%emt 0:00:12]} 22. Bb2 {[%emt 0:00:07]} Bxb4 {[%emt 0:00:22]} 23. Bc3 {[%emt 0:00:37]} Bxc3 {[%emt 0:00:05]} 24. Qxc3 {[%emt 0:00:01]} b5 {[%emt 0:00:07]} 25. Ra1 {[%emt 0:00:15]} b4 {[%emt 0:00:09]} 26. Qxb4 {[%emt 0:00:03]} Qc2 {[%emt 0:00:03]} 27. Rac1 {[%emt 0:00:04]} Qa2 {[%emt 0:00:03]} 28. Nd6 {[%emt 0:00:03]} Rfb8 {[%emt 0:00:02]} 29. Qc3 {[%emt 0:00:01]} Qa6 {[%emt 0:00:02]} 30. Qe3 {[%emt 0:00:03]} Qa3 {[%emt 0:00:01]} 31. Rc3 {[%emt 0:00:02]} Qa6 {[%emt 0:00:02]} 32. Rec1 {[%emt 0:00:00]} Rb6 {[%emt 0:00:01]} 33. Bf1 {[%emt 0:00:02]} Qa4 {[%emt 0:00:03]} 34. h4 {[%emt 0:00:01]} h6 {[%emt 0:00:01]} 35. Be2 {[%emt 0:00:01]} Bh5 {[%emt 0:00:03]} 36. Bxh5 {[%emt 0:00:03]} Nxh5 {[%emt 0:00:00]} 37. Qf3 {[%emt 0:00:01]} Nhf6 {[%emt 0:00:01]} 38. e5 {[%emt 0:00:00]} Nd5 {[%emt 0:00:02]} 39. Qxf7+ {[%emt 0:00:01]} Kh8 {[%emt 0:00:02]} 40. Rc4 {[%emt 0:00:08]} Qa2 {[%emt 0:00:01]} 41. N2e4 {[%emt 0:00:01]} Nf8 {[%emt 0:00:03]} 42. Qh5 {[%emt 0:00:06]} Rb2 {[%emt 0:00:02]} 43. Nf7+ {[%emt 0:00:02]} Kg8 {[%emt 0:00:02]} 44. Nxh6+ {[%emt 0:00:01]} gxh6 {[%emt 0:00:02]} 45. Qxh6 {[%emt 0:00:01]} Nd7 {[%emt 0:00:05]} 46. Qxe6+ {[%emt 0:00:02]} Kh7 {[%emt 0:00:02]} 47. Qxd7+ {[%emt 0:00:01]} Kg8 {[%emt 0:00:01]} 48. Qe6+ {[%emt 0:00:01]} Kf8 {[%emt 0:00:02]} 49. Qxc6 {[%emt 0:00:02]} Rab8 {[%emt 0:00:02]} 50. Qxd5 {[%emt 0:00:02]} Rb1 {[%emt 0:00:02]} 51. Qd6+ {[%emt 0:00:02]} Kg8 {[%emt 0:00:01]} 52. Qe6+ {[%emt 0:00:02]} Kh8 {[%emt 0:00:01]} 53. Qh6+ {[%emt 0:00:06]} Kg8 {[%emt 0:00:01]} 54. Nf6+ {[%emt 0:00:01] Kf8 [%clk 0:00:11]} 1-0

[Event "RUS-ch Blitz Women 2018"]
[Site "Sochi"]
[Date "2018.10.07"]
[Round "3"]
[White "Tomashevskaya, Lidia"]
[Black "Bivol, Alina"]
[Result "1/2-1/2"]
[ECO "C03"]
[WhiteElo "2123"]
[BlackElo "2403"]
[Annotator "NA"]
[PlyCount "79"]
[EventDate "2018.10.07"]
[EventType "swiss"]
[EventCountry "RUS"]
[SourceTitle "playchess.com"]
[Source "ChessBase"]
[SourceQuality "1"]
[TimeControl "180+2"]

1. e4 {[%emt 0:00:00]} e6 {[%emt 0:00:00]} 2. d4 {[%emt 0:00:00]} d5 {[%emt 0:00:00]} 3. Nd2 {[%emt 0:00:01]} Be7 {[%emt 0:00:00]} 4. Ngf3 {[%emt 0:00:03]} Nf6 {[%emt 0:00:02]} 5. e5 {[%emt 0:00:05]} Nfd7 {[%emt 0:00:01]} 6. Bd3 {[%emt 0:00:02]} c5 {[%emt 0:00:01]} 7. c3 {[%emt 0:00:01]} Nc6 {[%emt 0:00:01]} 8. O-O {[%emt 0:00:07]} Qb6 {[%emt 0:00:01]} 9. dxc5 {[%emt 0:00:34]} Nxc5 {[%emt 0:00:02]} 10. Bc2 {[%emt 0:00:04]} Nd7 {[%emt 0:00:01]} 11. Qe2 {[%emt 0:00:10]} g5 {[%emt 0:00:01]} 12. Nb3 {[%emt 0:01:10]} g4 {[%emt 0:00:07]} 13. Nfd4 {[%emt 0:00:02]} Ncxe5 {[%emt 0:00:08]} 14. Be3 {[%emt 0:00:16]} Qd8 {[%emt 0:00:08]} 15. f4 {[%emt 0:00:02]} gxf3 {[%emt 0:00:08]} 16. Nxf3 {[%emt 0:00:01]} Ng6 {[%emt 0:00:39]} 17. Bd4 {[%emt 0:00:22]} Rg8 {[%emt 0:00:04]} 18. g3 {[%emt 0:00:07]} Qc7 {[%emt 0:00:13]} 19. Rae1 {[%emt 0:00:04]} Nc5 {[%emt 0:00:26]} 20. Ne5 {[%emt 0:00:04]} Nxe5 {[%emt 0:00:12]} 21. Bxe5 {[%emt 0:00:01]} Qb6 {[%emt 0:00:05]} 22. Kh1 {[%emt 0:00:09]} Nxb3 {[%emt 0:00:15]} 23. axb3 {[%emt 0:00:01]} Bd7 {[%emt 0:00:20]} 24. Rxf7 {[%emt 0:00:04]} Rg5 {[%emt 0:00:29]} 25. Rxh7 {[%emt 0:00:04]} Bf8 {[%emt 0:00:13]} 26. Bd4 {[%emt 0:00:01]} Qc6 {[%emt 0:00:05]} 27. Qf3 {[%emt 0:00:02]} O-O-O {[%emt 0:00:02]} 28. Bf6 {[%emt 0:00:03]} Bc5 {[%emt 0:00:08]} 29. Bxg5 {[%emt 0:00:02]} Rf8 {[%emt 0:00:01]} 30. Rf7 {[%emt 0:00:03]} Rg8 {[%emt 0:00:01]} 31. Be3 {[%emt 0:00:11]} Bxe3 {[%emt 0:00:02]} 32. Rxe3 {[%emt 0:00:01]} Qd6 {[%emt 0:00:02]} 33. Re1 {[%emt 0:00:04]} e5 {[%emt 0:00:00]} 34. Rf6 {[%emt 0:00:03]} Qc7 {[%emt 0:00:01]} 35. Qxd5 {[%emt 0:00:01]} Rh8 {[%emt 0:00:03]} 36. Be4 {[%emt 0:00:02]} Bc6 {[%emt 0:00:04]} 37. Qd3 {[%emt 0:00:01]} Bd7 38. Bf5 {[%emt 0:00:01]} Bxf5 {[%emt 0:00:04]} 39. Qxf5+ {[%emt 0:00:00]} Kb8 {[%emt 0:00:01]} 40. Rf8+ {[%emt 0:00:01]} 1/2-1/2

[Event "RUS-ch Blitz Women 2018"]
[Site "Sochi"]
[Date "2018.10.07"]
[Round "4"]
[White "Bivol, Alina"]
[Black "Tomashevskaya, Lidia"]
[Result "1-0"]
[ECO "A05"]
[WhiteElo "2403"]
[BlackElo "2123"]
[Annotator "NA"]
[PlyCount "69"]
[EventDate "2018.10.07"]
[EventType "swiss"]
[EventCountry "RUS"]
[SourceTitle "playchess.com"]
[Source "ChessBase"]
[SourceQuality "1"]
[TimeControl "180+2"]

1. Nf3 {[%emt 0:00:00]} Nf6 {[%emt 0:00:00]} 2. g3 {[%emt 0:00:00]} e6 {[%emt 0:00:00]} 3. Bg2 {[%emt 0:00:00]} d5 {[%emt 0:00:01]} 4. d4 {[%emt 0:00:02]} b6 {[%emt 0:00:09]} 5. O-O Bb7 6. c4 {[%emt 0:00:16]} Nbd7 {[%emt 0:00:08]} 7. Nbd2 {[%emt 0:00:05]} Be7 {[%emt 0:00:11]} 8. Qc2 {[%emt 0:00:01]} O-O {[%emt 0:00:05]} 9. b3 {[%emt 0:00:01]} Rc8 {[%emt 0:00:07]} 10. Bb2 {[%emt 0:00:03]} c5 {[%emt 0:00:03]} 11. dxc5 {[%emt 0:00:04]} Nxc5 {[%emt 0:00:03]} 12. Ne5 {[%emt 0:00:02]} Qc7 {[%emt 0:00:29]} 13. Rac1 {[%emt 0:00:02]} Nce4 {[%emt 0:00:03]} 14. Nxe4 {[%emt 0:00:19]} Nxe4 {[%emt 0:00:01]} 15. e3 {[%emt 0:00:04]} Bf6 {[%emt 0:00:05]} 16. Ng4 {[%emt 0:00:08]} Bxb2 {[%emt 0:00:10]} 17. Qxb2 {[%emt 0:00:01]} Nc5 {[%emt 0:00:01]} 18. Rfd1 {[%emt 0:00:08]} dxc4 {[%emt 0:00:02]} 19. Rxc4 {[%emt 0:00:30]} Bxg2 {[%emt 0:00:13]} 20. Kxg2 {[%emt 0:00:01]} Qb7+ {[%emt 0:00:08]} 21. f3 {[%emt 0:00:13]} Rfd8 {[%emt 0:00:02]} 22. Rcd4 {[%emt 0:00:02]} Rxd4 {[%emt 0:00:16]} 23. Qxd4 {[%emt 0:00:03]} h6 {[%emt 0:00:10]} 24. Rd2 {[%emt 0:00:01]} a5 {[%emt 0:00:19]} 25. Ne5 {[%emt 0:00:02]} Qc7 {[%emt 0:00:09]} 26. h4 {[%emt 0:00:38]} Nb7 {[%emt 0:00:19]} 27. Qe4 {[%emt 0:00:26]} Nd6 {[%emt 0:00:14]} 28. Qf4 {[%emt 0:00:10]} Nf5 {[%emt 0:00:04]} 29. Nc4 {[%emt 0:00:14]} Qc5 {[%emt 0:00:14]} 30. Re2 {[%emt 0:00:16]} Rd8 {[%emt 0:00:05]} 31. Qe5 {[%emt 0:00:03]} Qxe5 32. Nxe5 {[%emt 0:00:00]} f6 {[%emt 0:00:10]} 33. Nc4 {[%emt 0:00:02]} Rb8 {[%emt 0:00:05]} 34. Kf2 {[%emt 0:00:02]} Kf7 {[%emt 0:00:02]} 35. Rd2 {[%emt 0:00:02]} 1-0

[Event "RUS-ch Blitz Women 2018"]
[Site "Sochi"]
[Date "2018.10.07"]
[Round "4"]
[White "Vasilevich, Tatjana"]
[Black "Diakonova, Ekaterina"]
[Result "1-0"]
[ECO "A57"]
[WhiteElo "2360"]
[BlackElo "2236"]
[Annotator "NA"]
[PlyCount "51"]
[EventDate "2018.10.07"]
[EventType "swiss"]
[EventCountry "RUS"]
[SourceTitle "playchess.com"]
[Source "ChessBase"]
[SourceQuality "1"]
[TimeControl "180+2"]

1. d4 {[%emt 0:00:00]} Nf6 {[%emt 0:00:00]} 2. c4 {[%emt 0:00:00]} c5 {[%emt 0:00:00]} 3. d5 {[%emt 0:00:00]} b5 {[%emt 0:00:01]} 4. Nf3 {[%emt 0:00:02]} g6 {[%emt 0:00:04]} 5. Qc2 {[%emt 0:00:01]} b4 {[%emt 0:00:06]} 6. b3 {[%emt 0:00:04]} Bg7 {[%emt 0:00:01]} 7. Bb2 {[%emt 0:00:01]} e6 {[%emt 0:00:28]} 8. e4 {[%emt 0:00:05]} exd5 {[%emt 0:00:02]} 9. e5 {[%emt 0:00:12]} Ng8 {[%emt 0:00:35]} 10. cxd5 {[%emt 0:00:02]} d6 {[%emt 0:00:01]} 11. Bb5+ {[%emt 0:00:19]} Bd7 {[%emt 0:00:02]} 12. e6 {[%emt 0:00:09]} Qe7 {[%emt 0:00:36]} 13. Bxd7+ {[%emt 0:00:14]} Nxd7 {[%emt 0:00:05]} 14. Bxg7 {[%emt 0:00:04]} fxe6 {[%emt 0:00:01]} 15. Bxh8 {[%emt 0:00:03]} O-O-O {[%emt 0:00:05]} 16. dxe6 {[%emt 0:00:32]} Ndf6 {[%emt 0:00:17]} 17. O-O {[%emt 0:00:07]} Nh6 {[%emt 0:00:15]} 18. Bxf6 {[%emt 0:00:04]} Qxf6 {[%emt 0:00:00]} 19. Nbd2 {[%emt 0:00:03]} Nf5 {[%emt 0:00:01]} 20. Rfe1 {[%emt 0:00:07]} g5 {[%emt 0:00:02]} 21. Ne4 {[%emt 0:00:04]} Qg6 {[%emt 0:00:04]} 22. Nexg5 {[%emt 0:00:05]} h6 {[%emt 0:00:01]} 23. Nf7 {[%emt 0:00:02]} Rg8 {[%emt 0:00:02]} 24. g3 {[%emt 0:00:09]} h5 {[%emt 0:00:11]} 25. Rad1 {[%emt 0:00:04]} h4 {[%emt 0:00:02]} 26. Nxd6+ {[%emt 0:00:04]} 1-0

[Event "RUS-ch Blitz Women 2018"]
[Site "Sochi"]
[Date "2018.10.07"]
[Round "4"]
[White "Charochkina, Daria"]
[Black "Gritsayeva, Oksana"]
[Result "1-0"]
[ECO "A50"]
[WhiteElo "2344"]
[BlackElo "2378"]
[Annotator "NA"]
[PlyCount "61"]
[EventDate "2018.10.07"]
[EventType "swiss"]
[EventCountry "RUS"]
[SourceTitle "playchess.com"]
[Source "ChessBase"]
[SourceQuality "1"]
[TimeControl "180+2"]

1. d4 {[%emt 0:00:04]} Nf6 {[%emt 0:00:00]} 2. c4 {[%emt 0:00:02]} Nc6 {[%emt 0:00:00]} 3. Nf3 {[%emt 0:00:03]} e6 {[%emt 0:00:00]} 4. a3 {[%emt 0:00:00]} d5 {[%emt 0:00:06]} 5. e3 {[%emt 0:00:03]} Be7 {[%emt 0:00:03]} 6. Be2 {[%emt 0:00:02]} O-O {[%emt 0:00:02]} 7. O-O {[%emt 0:00:02]} Ne4 {[%emt 0:00:04]} 8. Nc3 {[%emt 0:00:09]} Nxc3 {[%emt 0:00:05]} 9. bxc3 {[%emt 0:00:01]} b6 {[%emt 0:00:10]} 10. cxd5 {[%emt 0:00:17]} exd5 {[%emt 0:00:02]} 11. c4 {[%emt 0:00:05]} dxc4 {[%emt 0:00:31]} 12. Bxc4 {[%emt 0:00:02]} Bb7 {[%emt 0:00:01]} 13. Bb2 {[%emt 0:00:03]} Bf6 {[%emt 0:00:05]} 14. e4 {[%emt 0:00:16]} Na5 {[%emt 0:00:11]} 15. Bd3 {[%emt 0:00:04]} g6 {[%emt 0:00:07]} 16. Rc1 {[%emt 0:00:16]} Bg7 {[%emt 0:00:25]} 17. Bc3 {[%emt 0:00:27]} Nc6 {[%emt 0:00:07]} 18. d5 {[%emt 0:00:06]} Ne7 {[%emt 0:00:23]} 19. Bxg7 {[%emt 0:00:05]} Kxg7 {[%emt 0:00:01]} 20. Qc2 {[%emt 0:00:10]} c6 {[%emt 0:00:06]} 21. Nd4 {[%emt 0:00:22]} cxd5 {[%emt 0:00:05]} 22. e5 {[%emt 0:00:01]} Rc8 {[%emt 0:00:14]} 23. Qb2 {[%emt 0:00:00]} Kg8 {[%emt 0:00:07]} 24. f4 {[%emt 0:00:04]} Nc6 {[%emt 0:00:11]} 25. Nb5 {[%emt 0:00:06]} Na5 {[%emt 0:00:12]} 26. Nd6 {[%emt 0:00:21]} Rxc1 {[%emt 0:00:07]} 27. Qxc1 {[%emt 0:00:01]} Bc8 {[%emt 0:00:07]} 28. f5 {[%emt 0:00:01]} Bxf5 {[%emt 0:00:19]} 29. Bxf5 {[%emt 0:00:05]} gxf5 {[%emt 0:00:01]} 30. Qh6 {[%emt 0:00:04]} Nc6 {[%emt 0:00:05]} 31. Nxf5 {[%emt 0:00:09]} 1-0

[Event "RUS-ch Blitz Women 2018"]
[Site "Sochi"]
[Date "2018.10.07"]
[Round "4"]
[White "Dordzhieva, Dinara"]
[Black "Vinokur, Yuliya"]
[Result "0-1"]
[ECO "A04"]
[WhiteElo "2340"]
[BlackElo "2170"]
[Annotator "NA"]
[PlyCount "94"]
[EventDate "2018.10.07"]
[EventType "swiss"]
[EventCountry "RUS"]
[SourceTitle "playchess.com"]
[Source "ChessBase"]
[SourceQuality "1"]
[TimeControl "180+2"]

1. Nf3 {[%emt 0:00:00]} g6 {[%emt 0:00:00]} 2. d4 {[%emt 0:00:03]} Bg7 {[%emt 0:00:01]} 3. c4 {[%emt 0:00:01]} Nf6 4. g3 c5 {[%emt 0:00:04]} 5. Bg2 {[%emt 0:00:02]} O-O {[%emt 0:00:05]} 6. Nc3 {[%emt 0:00:01]} d5 {[%emt 0:00:20]} 7. dxc5 {[%emt 0:00:18]} dxc4 {[%emt 0:00:02]} 8. O-O {[%emt 0:00:02]} Na6 {[%emt 0:00:02]} 9. c6 {[%emt 0:00:18]} bxc6 {[%emt 0:00:08]} 10. Ne5 {[%emt 0:00:00]} Bb7 {[%emt 0:00:14]} 11. Nxc6 {[%emt 0:00:17]} Qc7 {[%emt 0:00:47]} 12. Bf4 {[%emt 0:00:02]} Qb6 {[%emt 0:00:23]} 13. Nxe7+ {[%emt 0:00:26]} Kh8 {[%emt 0:00:01]} 14. Ned5 {[%emt 0:00:01]} Nxd5 {[%emt 0:00:08]} 15. Nxd5 {[%emt 0:00:01]} Bxd5 {[%emt 0:00:04]} 16. Qxd5 {[%emt 0:00:07]} Rac8 {[%emt 0:00:20]} 17. Be5 {[%emt 0:00:09]} Nb4 {[%emt 0:00:14]} 18. Bxg7+ {[%emt 0:00:13]} Kxg7 19. Qe5+ Kg8 {[%emt 0:00:03]} 20. Qc3 {[%emt 0:00:16]} Rfe8 {[%emt 0:00:01]} 21. Bf3 {[%emt 0:00:13]} Nc6 {[%emt 0:00:18]} 22. Rfd1 {[%emt 0:00:06]} Ne5 {[%emt 0:00:05]} 23. Bg2 {[%emt 0:00:01]} Ng4 {[%emt 0:00:06]} 24. e3 {[%emt 0:00:11]} Nxe3 {[%emt 0:00:12]} 25. fxe3 {[%emt 0:00:13]} Rxe3 {[%emt 0:00:01]} 26. Qd4 {[%emt 0:00:00]} Re1+ 27. Kf2 Qxd4+ {[%emt 0:00:03]} 28. Rxd4 {[%emt 0:00:04]} Rxa1 {[%emt 0:00:01]} 29. Rd7 {[%emt 0:00:02]} Rxa2 {[%emt 0:00:01]} 30. Rb7 {[%emt 0:00:01]} Rd8 {[%emt 0:00:02]} 31. Ke3 {[%emt 0:00:02]} Rd3+ {[%emt 0:00:01]} 32. Kf4 {[%emt 0:00:09]} Rb3 {[%emt 0:00:01]} 33. Rc7 {[%emt 0:00:01]} Rbxb2 {[%emt 0:00:01]} 34. Bd5 {[%emt 0:00:01]} Rf2+ {[%emt 0:00:01]} 35. Ke5 {[%emt 0:00:02]} Rae2+ {[%emt 0:00:02]} 36. Kd6 {[%emt 0:00:01]} Rd2 {[%emt 0:00:04]} 37. Rxc4 {[%emt 0:00:28]} Rf5 {[%emt 0:00:02]} 38. Rc5 {[%emt 0:00:01]} Rfxd5+ {[%emt 0:00:03]} 39. Rxd5 {[%emt 0:00:00]} Rxd5+ {[%emt 0:00:01]} 40. Kxd5 {[%emt 0:00:01]} Kg7 {[%emt 0:00:01]} 41. Kc6 {[%emt 0:00:01]} Kf6 42. Kb7 Kg5 {[%emt 0:00:03]} 43. Kxa7 {[%emt 0:00:01]} Kg4 {[%emt 0:00:01]} 44. Kb6 {[%emt 0:00:04]} Kh3 {[%emt 0:00:01]} 45. Kc5 {[%emt 0:00:01]} Kxh2 {[%emt 0:00:02]} 46. g4 {[%emt 0:00:01]} Kg3 {[%emt 0:00:01]} 47. g5 {[%emt 0:00:01]} Kg4 {[%emt 0:00:01]} 0-1

[Event "RUS-ch Blitz Women 2018"]
[Site "Sochi"]
[Date "2018.10.07"]
[Round "4"]
[White "Protopopova, Anastasiya"]
[Black "Baraeva, Irina"]
[Result "1-0"]
[ECO "D11"]
[WhiteElo "2308"]
[BlackElo "2221"]
[Annotator "NA"]
[PlyCount "69"]
[EventDate "2018.10.07"]
[EventType "swiss"]
[EventCountry "RUS"]
[SourceTitle "playchess.com"]
[Source "ChessBase"]
[SourceQuality "1"]
[TimeControl "180+2"]

1. d4 {[%emt 0:00:01]} d5 {[%emt 0:00:00]} 2. Nf3 {[%emt 0:00:02]} Nf6 {[%emt 0:00:00]} 3. c4 c6 4. e3 {[%emt 0:00:10]} Bg4 {[%emt 0:00:05]} 5. Nc3 {[%emt 0:00:03]} e6 {[%emt 0:00:02]} 6. h3 {[%emt 0:00:01]} Bh5 {[%emt 0:00:09]} 7. Qb3 {[%emt 0:00:02]} Qc7 {[%emt 0:00:19]} 8. Ne5 {[%emt 0:00:13]} Nbd7 {[%emt 0:00:06]} 9. g4 {[%emt 0:00:06]} Bg6 {[%emt 0:00:01]} 10. Nxg6 {[%emt 0:00:02]} hxg6 {[%emt 0:00:01]} 11. Bg2 {[%emt 0:00:04]} Be7 {[%emt 0:00:14]} 12. Bd2 {[%emt 0:00:01]} a5 {[%emt 0:00:29]} 13. Rc1 {[%emt 0:00:09]} dxc4 {[%emt 0:00:07]} 14. Qxc4 {[%emt 0:00:03]} Nb6 {[%emt 0:00:03]} 15. Qe2 {[%emt 0:00:11]} Rd8 {[%emt 0:00:15]} 16. Nb5 {[%emt 0:00:12]} Qb8 {[%emt 0:00:32]} 17. Bxa5 {[%emt 0:00:10]} Nbd5 {[%emt 0:00:18]} 18. Bxd8 {[%emt 0:00:20]} Qxd8 {[%emt 0:00:04]} 19. Nc3 {[%emt 0:00:03]} Bb4 {[%emt 0:00:03]} 20. O-O {[%emt 0:00:05]} Qb8 {[%emt 0:00:10]} 21. f4 {[%emt 0:00:13]} Bd6 {[%emt 0:00:21]} 22. Nxd5 {[%emt 0:00:13]} Nxd5 {[%emt 0:00:08]} 23. Qf3 {[%emt 0:00:26]} Bb4 {[%emt 0:00:08]} 24. Rc2 {[%emt 0:00:04]} Qa7 {[%emt 0:00:03]} 25. a3 {[%emt 0:00:04]} Bd6 {[%emt 0:00:01]} 26. f5 {[%emt 0:00:16]} gxf5 {[%emt 0:00:05]} 27. gxf5 {[%emt 0:00:02]} f6 {[%emt 0:00:03]} 28. fxe6 {[%emt 0:00:03]} Qa4 {[%emt 0:00:04]} 29. Re2 {[%emt 0:00:12]} Qb3 {[%emt 0:00:01]} 30. Qe4 {[%emt 0:00:06]} Ke7 {[%emt 0:00:01]} 31. Qg6 {[%emt 0:00:06]} Kxe6 {[%emt 0:00:02]} 32. Qxg7 {[%emt 0:00:07]} Rf8 {[%emt 0:00:02]} 33. Qg4+ Ke7 34. e4 {[%emt 0:00:11]} Ne3 {[%emt 0:00:04]} 35. Qf3 {[%emt 0:00:05]} 1-0

[Event "RUS-ch Blitz Women 2018"]
[Site "Sochi"]
[Date "2018.10.07"]
[Round "4"]
[White "Solozhenkina, Elizaveta"]
[Black "Voit, Daria"]
[Result "1-0"]
[ECO "B54"]
[WhiteElo "2276"]
[BlackElo "2352"]
[Annotator "NA"]
[PlyCount "73"]
[EventDate "2018.10.07"]
[EventType "swiss"]
[EventCountry "RUS"]
[SourceTitle "playchess.com"]
[Source "ChessBase"]
[SourceQuality "1"]
[TimeControl "180+2"]

1. e4 {[%emt 0:00:00]} c5 {[%emt 0:00:00]} 2. Nf3 {[%emt 0:00:00]} d6 {[%emt 0:00:00]} 3. d4 {[%emt 0:00:00]} cxd4 {[%emt 0:00:01]} 4. Nxd4 {[%emt 0:00:01]} Nf6 {[%emt 0:00:01]} 5. f3 {[%emt 0:00:01]} e6 {[%emt 0:00:14]} 6. c4 {[%emt 0:00:01]} Be7 {[%emt 0:00:02]} 7. Nc3 {[%emt 0:00:01]} O-O {[%emt 0:00:03]} 8. Be2 {[%emt 0:00:02]} a6 {[%emt 0:00:03]} 9. O-O {[%emt 0:00:04]} Qc7 {[%emt 0:00:03]} 10. Be3 {[%emt 0:00:02]} b6 {[%emt 0:00:03]} 11. Qd2 {[%emt 0:00:02]} Nbd7 {[%emt 0:00:03]} 12. a3 {[%emt 0:00:02]} Bb7 {[%emt 0:00:01]} 13. b4 {[%emt 0:00:01]} Rac8 {[%emt 0:00:03]} 14. Rac1 {[%emt 0:00:04]} Qb8 {[%emt 0:00:01]} 15. Nb3 {[%emt 0:00:20]} Bd8 {[%emt 0:00:09]} 16. Rfd1 {[%emt 0:00:15]} Bc7 {[%emt 0:00:01]} 17. Bf4 {[%emt 0:00:00]} Ne5 {[%emt 0:00:08]} 18. Kh1 {[%emt 0:00:14]} Rfd8 {[%emt 0:00:02]} 19. Qb2 {[%emt 0:00:41]} Qa8 {[%emt 0:00:35]} 20. Bf1 {[%emt 0:00:23]} h6 {[%emt 0:00:30]} 21. Bg3 {[%emt 0:00:19]} Nh5 {[%emt 0:00:05]} 22. Bxe5 {[%emt 0:00:13]} dxe5 {[%emt 0:00:01]} 23. c5 {[%emt 0:00:01]} Rxd1 {[%emt 0:00:13]} 24. Rxd1 {[%emt 0:00:02]} Rd8 {[%emt 0:00:01]} 25. Qc2 {[%emt 0:00:16]} Nf6 {[%emt 0:00:06]} 26. Na4 {[%emt 0:00:16]} Nd7 {[%emt 0:00:38]} 27. cxb6 {[%emt 0:00:11]} Nxb6 {[%emt 0:00:04]} 28. Nac5 {[%emt 0:00:01]} Bd6 {[%emt 0:00:25]} 29. a4 {[%emt 0:00:09]} Bxc5 {[%emt 0:00:07]} 30. Nxc5 {[%emt 0:00:01]} Rxd1 {[%emt 0:00:05]} 31. Qxd1 {[%emt 0:00:01]} Bc6 {[%emt 0:00:03]} 32. a5 {[%emt 0:00:02]} Nd7 {[%emt 0:00:07]} 33. Nxd7 {[%emt 0:00:02]} Qd8 {[%emt 0:00:00]} 34. Bxa6 {[%emt 0:00:07]} Qxd7 {[%emt 0:00:06]} 35. Qxd7 {[%emt 0:00:02]} Bxd7 {[%emt 0:00:01]} 36. b5 {[%emt 0:00:04]} Kf8 {[%emt 0:00:01]} 37. b6 {[%emt 0:00:01]} 1-0